[Event "POL-chT 2nd League-4 2020"]
[Site "Poronin"]
[Date "2020.09.12"]
[Round "8.15"]
[White "Mirski, Michal"]
[Black "Zawierucha, Aleksander"]
[Result "1-0"]
[ECO "B03"]
[WhiteElo "2032"]
[BlackElo "1899"]
[Annotator "ChessBase"]
[PlyCount "55"]
[EventDate "2020.09.05"]
[EventType "team-tourn"]
[EventCountry "POL"]
[SourceTitle "playchess.com"]
[Source "ChessBase"]
[SourceQuality "1"]
[WhiteTeam "Goniec Staniatki"]
[BlackTeam "ROSZADA Zory"]
[TimeControl "40/5400+30:900+30"]

1. e4 {[%emt 0:00:10]} Nf6 {[%emt 0:00:00]} 2. e5 {[%emt 0:00:11]} Nd5 {[%emt 0:00:00]} 3. d4 {[%emt 0:00:02]} d6 {[%emt 0:00:00]} 4. c4 {[%emt 0:00:02]} Nb6 {[%emt 0:00:03]} 5. f4 {[%emt 0:00:11]} dxe5 {[%emt 0:00:07]} 6. fxe5 {[%emt 0:00:25]} c5 {[%emt 0:00:08]} 7. d5 {[%emt 0:01:37]} e6 {[%emt 0:00:24]} 8. Nc3 {[%emt 0:01:40]} exd5 {[%emt 0:00:07]} 9. cxd5 {[%emt 0:00:30]} c4 {[%emt 0:00:06]} 10. Be2 {[%emt 0:13:09]} Bb4 {[%emt 0:08:08]} 11. Bf3 {[%emt 0:01:28]} Na6 {[%emt 0:06:50]} 12. Nge2 {[%emt 0:16:28]} Nc5 {[%emt 0:06:05]} 13. Nf4 {[%emt 0:11:02]} O-O {[%emt 0:15:31]} 14. O-O {[%emt 0:02:40]} Bf5 {[%emt 0:03:55]} 15. d6 {[%emt 0:04:51]} Bxc3 {[%emt 0:10:42]} 16. bxc3 {[%emt 0:00:06]} Qd7 {[%emt 0:00:31]} 17. Ba3 {[%emt 0:06:05]} Nd3 {[%emt 0:03:19]} 18. Nxd3 {[%emt 0:03:45]} Bxd3 {[%emt 0:00:57]} 19. Re1 {[%emt 0:01:01]} Rfe8 {[%emt 0:03:25]} 20. Qd2 {[%emt 0:02:08]} Rab8 {[%emt 0:09:52]} 21. Qf4 {[%emt 0:02:10]} Qb5 {[%emt 0:06:02]} 22. Qd4 {[%emt 0:04:40]} Nd7 {[%emt 0:02:25]} 23. Bd5 {[%emt 0:00:29]} Nb6 {[%emt 0:03:08]} 24. Bxf7+ {[%emt 0:16:21]} Kxf7 {[%emt 0:01:18]} 25. e6+ {[%emt 0:00:04]} Rxe6 {[%emt 0:08:27]} 26. Rxe6 {[%emt 0:00:05]} Kxe6 {[%emt 0:00:32]} 27. Re1+ {[%emt 0:00:10]} Kd7 {[%emt 0:00:19]} 28. Qxg7+ {[%emt 0:03:32]} 1-0

[Event "POL-chT 2nd League-4 2020"]
[Site "Poronin"]
[Date "2020.09.12"]
[Round "8.16"]
[White "Ociepka, Tomasz"]
[Black "Lapczynski, Artur"]
[Result "0-1"]
[ECO "B32"]
[WhiteElo "1888"]
[BlackElo "2059"]
[Annotator "NA"]
[PlyCount "90"]
[EventDate "2020.09.05"]
[EventType "team-tourn"]
[EventCountry "POL"]
[SourceTitle "playchess.com"]
[Source "ChessBase"]
[SourceQuality "1"]
[WhiteTeam "ROSZADA Zory"]
[BlackTeam "Goniec Staniatki"]
[BlackTeamCountry "POL"]
[TimeControl "40/5400+30:900+30"]

1. e4 {[%emt 0:04:25]} c5 {[%emt 0:00:00]} 2. Nf3 {[%emt 0:00:13]} Nc6 {[%emt 0:00:00]} 3. d4 {[%emt 0:00:02]} cxd4 {[%emt 0:00:00]} 4. Nxd4 {[%emt 0:00:02]} e5 {[%emt 0:00:06]} 5. Nb5 {[%emt 0:00:02]} d6 {[%emt 0:00:12]} 6. N1c3 {[%emt 0:00:18]} a6 {[%emt 0:00:14]} 7. Na3 {[%emt 0:00:14]} b5 {[%emt 0:00:18]} 8. Nd5 {[%emt 0:00:05]} Nce7 {[%emt 0:00:32]} 9. c4 {[%emt 0:05:13]} Nxd5 {[%emt 0:01:14]} 10. cxd5 {[%emt 0:02:01]} f5 {[%emt 0:00:47]} 11. exf5 {[%emt 0:09:13]} Bxf5 {[%emt 0:00:10]} 12. Bd3 {[%emt 0:01:53]} Qd7 {[%emt 0:00:42]} 13. Nc2 {[%emt 0:03:52]} Nf6 {[%emt 0:06:35]} 14. a4 {[%emt 0:04:11]} Bxd3 {[%emt 0:12:03]} 15. Qxd3 {[%emt 0:00:08]} bxa4 {[%emt 0:09:52]} 16. Nb4 {[%emt 0:09:48]} Qb5 {[%emt 0:06:28]} 17. Qxb5+ {[%emt 0:08:43]} axb5 {[%emt 0:00:06]} 18. b3 {[%emt 0:00:15]} Kd7 {[%emt 0:04:49]} 19. Be3 {[%emt 0:05:17]} Be7 {[%emt 0:03:12]} 20. bxa4 {[%emt 0:00:11]} Rxa4 {[%emt 0:03:08]} 21. Rb1 {[%emt 0:02:25]} Bd8 {[%emt 0:09:53]} 22. O-O {[%emt 0:05:53]} Ba5 {[%emt 0:02:45]} 23. Nc2 {[%emt 0:02:50]} Rc8 {[%emt 0:04:04]} 24. Rb2 {[%emt 0:00:57]} Nxd5 {[%emt 0:06:48]} 25. Rxb5 {[%emt 0:02:52]} Ke6 {[%emt 0:01:24]} 26. Rb2 {[%emt 0:02:26]} Rac4 {[%emt 0:07:10]} 27. Na3 {[%emt 0:01:26]} Nxe3 {[%emt 0:01:11]} 28. fxe3 {[%emt 0:00:04]} Rc3 {[%emt 0:00:21]} 29. Nb5 {[%emt 0:00:34]} Rxe3 {[%emt 0:00:59]} 30. Rd1 {[%emt 0:00:59]} d5 {[%emt 0:01:43]} 31. Na7 {[%emt 0:01:10]} Rc7 {[%emt 0:02:07]} 32. Nb5 {[%emt 0:00:32]} Rc5 {[%emt 0:00:15]} 33. h3 {[%emt 0:00:23]} Re1+ {[%emt 0:02:33]} 34. Rxe1 {[%emt 0:00:13]} Bxe1 {[%emt 0:00:03]} 35. Kh2 {[%emt 0:00:37]} h5 {[%emt 0:02:15]} 36. g3 {[%emt 0:00:30]} Bc3 {[%emt 0:03:04]} 37. Rb3 {[%emt 0:00:38]} d4 {[%emt 0:00:33]} 38. Kg2 {[%emt 0:00:12]} Kd5 {[%emt 0:01:13]} 39. Na3 {[%emt 0:00:03]} d3 {[%emt 0:03:46]} 40. Kf3 {[%emt 0:00:00]} e4+ {[%emt 0:00:00]} 41. Ke3 {[%emt 0:03:02]} Bd4+ {[%emt 0:02:13]} 42. Kd2 {[%emt 0:00:03]} Be5 {[%emt 0:01:25]} 43. g4 {[%emt 0:00:29]} Bf4+ {[%emt 0:00:06]} 44. Ke1 {[%emt 0:00:11]} Rc1+ {[%emt 0:00:51]} 45. Kf2 {[%emt 0:00:03]} d2 0-1

[Event "POL-chT 2nd League-4 2020"]
[Site "Poronin"]
[Date "2020.09.12"]
[Round "8.17"]
[White "Rainer, Piotr"]
[Black "Boruta, Dawid"]
[Result "0-1"]
[ECO "B13"]
[WhiteElo "1641"]
[BlackElo "1822"]
[Annotator "NA"]
[PlyCount "114"]
[EventDate "2020.09.05"]
[EventType "team-tourn"]
[EventCountry "POL"]
[SourceTitle "playchess.com"]
[Source "ChessBase"]
[SourceQuality "1"]
[WhiteTeam "Goniec Staniatki"]
[BlackTeam "ROSZADA Zory"]
[TimeControl "40/5400+30:900+30"]

1. e4 {[%emt 0:00:00]} c6 {[%emt 0:00:00]} 2. d4 {[%emt 0:03:01]} d5 {[%emt 0:00:00]} 3. exd5 {[%emt 0:01:06]} cxd5 {[%emt 0:00:00]} 4. Nf3 {[%emt 0:00:44]} Nc6 {[%emt 0:00:28]} 5. c3 {[%emt 0:01:51]} Qc7 {[%emt 0:02:47]} 6. Be2 {[%emt 0:04:27] B13: Caro-Kann: Exchange Variation and Panov-Botvinnik Attack.} Bf5 {[%emt 0:06:16]} 7. O-O {[%emt 0:03:12]} e6 {[%emt 0:11:06] [#]} 8. Ne5 $146 {[%emt 0:05:12]} ({Predecessor:} 8. Nbd2 Bd6 9. Re1 Nf6 10. Nf1 O-O 11. Nh4 Be4 12. Bd3 Bxd3 13. Qxd3 Ne4 14. g3 {0-1 (47) Chan,K (2191)-Dale,A (2371) Melbourne 2018}) 8... Bd6 {[%emt 0:05:30]} 9. f4 {[%emt 0:03:08]} Nf6 {[%emt 0:08:42]} 10. Nd2 {[%emt 0:03:09]} h6 {[%emt 0:10:34]} 11. Ndf3 {[%emt 0:07:26]} O-O {[%emt 0:02:50]} 12. h3 {[%emt 0:04:11]} Ne4 {[%emt 0:05:12]} 13. Bd3 {[%emt 0:16:21]} f6 {[%emt 0:05:28]} 14. Nxc6 {[%emt 0:03:08]} bxc6 {[%emt 0:00:09]} 15. Nh4 {[%emt 0:01:55]} Bh7 {[%emt 0:04:21]} 16. Bxe4 {[%emt 0:03:42]} Bxe4 {[%emt 0:04:48]} 17. f5 {[%emt 0:09:07]} Bh2+ {[%emt 0:04:26]} 18. Kh1 {[%emt 0:00:06]} Bd6 {[%emt 0:08:49]} 19. fxe6 {[%emt 0:02:04]} f5 {[%emt 0:03:40]} 20. Qh5 {[%emt 0:03:11]} f4 {[%emt 0:00:27]} 21. Bd2 {[%emt 0:02:34]} Rf6 {[%emt 0:01:09]} 22. Rae1 {[%emt 0:02:33]} Qe7 {[%emt 0:01:21]} 23. Qg4 {[%emt 0:03:04]} Kh7 {[%emt 0:03:28]} 24. Rxe4 {[%emt 0:07:37]} dxe4 {[%emt 0:00:02]} 25. Nf5 {[%emt 0:00:43]} Qf8 {[%emt 0:01:19]} 26. Nxd6 {[%emt 0:00:40]} Qxd6 {[%emt 0:00:09]} 27. Bxf4 {[%emt 0:00:41]} Qxe6 {[%emt 0:03:30]} 28. Qxe6 {[%emt 0:00:14]} Rxe6 {[%emt 0:00:01]} 29. Be5 {[%emt 0:00:10]} Kg6 {[%emt 0:02:08]} 30. Rf4 {[%emt 0:01:36]} Rd8 {[%emt 0:05:33]} 31. Rxe4 {[%emt 0:00:30]} Rd7 {[%emt 0:00:38]} 32. Kh2 {[%emt 0:01:35]} Rf7 {[%emt 0:00:25]} 33. Kg3 {[%emt 0:01:04]} Kh7 {[%emt 0:00:23]} 34. Rf4 {[%emt 0:00:51]} Kg8 {[%emt 0:00:10]} 35. Rxf7 {[%emt 0:00:47]} Kxf7 {[%emt 0:00:02]} 36. Kf4 {[%emt 0:00:10]} g6 {[%emt 0:00:32]} 37. b4 {[%emt 0:00:35]} Re7 {[%emt 0:00:49]} 38. a4 {[%emt 0:00:39]} a6 {[%emt 0:00:07]} 39. Ke4 {[%emt 0:01:22]} Ke6 {[%emt 0:00:48]} 40. c4 {[%emt 0:00:00]} Rb7 {[%emt 0:00:00]} 41. d5+ {[%emt 0:02:16]} cxd5+ {[%emt 0:02:36]} 42. cxd5+ {[%emt 0:00:15]} Kd7 {[%emt 0:00:21]} 43. Bc3 {[%emt 0:02:27]} Kd6 {[%emt 0:02:16]} 44. Kd4 {[%emt 0:01:42]} Rf7 {[%emt 0:03:17]} 45. Bd2 {[%emt 0:01:45]} g5 {[%emt 0:00:46]} 46. b5 {[%emt 0:01:03]} axb5 {[%emt 0:04:23]} 47. axb5 {[%emt 0:00:15]} Rf2 {[%emt 0:03:02]} 48. Bb4+ {[%emt 0:00:16]} Kc7 {[%emt 0:01:01]} 49. d6+ {[%emt 0:09:59]} Kb6 {[%emt 0:01:25]} 50. Ke5 {[%emt 0:00:28]} Rxg2 {[%emt 0:01:54]} 51. Ke6 {[%emt 0:01:33]} Re2+ {[%emt 0:00:20]} 52. Kf6 {[%emt 0:03:28]} Re3 {[%emt 0:00:41]} 53. Kg6 $19 {[%emt 0:00:59]} (53. Bd2 Rd3 54. Be1) 53... Rxh3 {[%emt 0:00:12]} 54. d7 {[%emt 0:00:37]} Kc7 {[%emt 0:00:24]} 55. b6+ {[%emt 0:00:29]} Kxd7 {[%emt 0:00:08]} 56. Bf8 {[%emt 0:00:11]} Kc6 {[%emt 0:00:17]} 57. Bxh6 {[%emt 0:00:34]} Rxh6+ 0-1

[Event "POL-chT 2nd League-4 2020"]
[Site "Poronin"]
[Date "2020.09.12"]
[Round "8.18"]
[White "Swiech, Joanna"]
[Black "Gaczol, Julia"]
[Result "1-0"]
[ECO "D60"]
[WhiteElo "1910"]
[BlackElo "1330"]
[Annotator "ChessBase"]
[PlyCount "113"]
[EventDate "2020.09.05"]
[EventType "team-tourn"]
[EventCountry "POL"]
[SourceTitle "playchess.com"]
[Source "ChessBase"]
[SourceQuality "1"]
[WhiteTeam "ROSZADA Zory"]
[BlackTeam "Goniec Staniatki"]
[BlackTeamCountry "POL"]
[TimeControl "40/5400+30:900+30"]

1. d4 {[%emt 0:00:00]} d5 {[%emt 0:00:00]} 2. c4 {[%emt 0:00:00]} e6 {[%emt 0:00:00]} 3. Nc3 {[%emt 0:00:00]} Nf6 {[%emt 0:00:21]} 4. Bg5 {[%emt 0:00:09]} Be7 {[%emt 0:00:26]} 5. e3 {[%emt 0:00:16]} O-O {[%emt 0:00:55]} 6. Nf3 {[%emt 0:00:15]} Nbd7 {[%emt 0:01:26]} 7. Bd3 {[%emt 0:00:40]} c5 {[%emt 0:03:08]} 8. cxd5 {[%emt 0:00:32]} exd5 {[%emt 0:04:15]} 9. Rc1 {[%emt 0:02:40]} b6 {[%emt 0:04:05]} 10. O-O {[%emt 0:01:16]} Bb7 {[%emt 0:01:00]} 11. Bb1 {[%emt 0:04:27]} Ne4 {[%emt 0:06:31]} 12. Bxe7 {[%emt 0:00:35]} Qxe7 {[%emt 0:00:28]} 13. dxc5 {[%emt 0:03:25]} Nxc3 {[%emt 0:02:22]} 14. Rxc3 {[%emt 0:01:43]} bxc5 {[%emt 0:00:58]} 15. Bf5 {[%emt 0:03:17]} Nf6 {[%emt 0:05:26]} 16. Qc2 {[%emt 0:02:47]} Ne4 {[%emt 0:01:41]} 17. Bxe4 {[%emt 0:01:31]} dxe4 {[%emt 0:00:56]} 18. Nd2 {[%emt 0:00:19]} Ba6 {[%emt 0:04:17]} 19. Rc1 {[%emt 0:00:47]} Bd3 {[%emt 0:00:53]} 20. Qa4 {[%emt 0:01:32]} Rab8 {[%emt 0:04:28]} 21. Qa3 {[%emt 0:02:38]} Qb7 {[%emt 0:07:32]} 22. Rb3 {[%emt 0:07:03]} Qa6 {[%emt 0:05:48]} 23. Qxa6 {[%emt 0:14:51]} Bxa6 {[%emt 0:00:28]} 24. Nxe4 {[%emt 0:06:35]} c4 {[%emt 0:04:08]} 25. Ra3 {[%emt 0:04:30]} Rb6 {[%emt 0:01:47]} 26. Nc5 {[%emt 0:00:51]} Bc8 {[%emt 0:04:52]} 27. Rxc4 {[%emt 0:03:00]} Rxb2 {[%emt 0:02:54]} 28. h3 {[%emt 0:01:05]} a6 {[%emt 0:03:54]} 29. Rd4 {[%emt 0:10:27]} Be6 {[%emt 0:04:42]} 30. Nxe6 {[%emt 0:03:30]} fxe6 {[%emt 0:00:28]} 31. f3 {[%emt 0:00:28]} Rc8 {[%emt 0:05:47]} 32. Rxa6 {[%emt 0:03:36]} Rc1+ {[%emt 0:03:06]} 33. Kh2 {[%emt 0:00:10]} h5 {[%emt 0:00:21]} 34. Rxe6 {[%emt 0:01:52]} Kf7 {[%emt 0:02:25]} 35. Re5 {[%emt 0:00:34]} g6 {[%emt 0:02:59]} 36. Rg5 {[%emt 0:02:34]} Rc3 {[%emt 0:02:04]} 37. h4 {[%emt 0:09:09]} Rxe3 {[%emt 0:02:12]} 38. Rd7+ {[%emt 0:01:11]} Ke6 {[%emt 0:00:58]} 39. Ra7 {[%emt 0:00:27]} Rxf3 {[%emt 0:01:48]} 40. Rxg6+ {[%emt 0:00:00]} Kd5 {[%emt 0:00:00]} 41. Rg5+ {[%emt 0:00:24]} Kc4 {[%emt 0:00:48]} 42. Rxh5 {[%emt 0:00:44]} Rf6 {[%emt 0:01:42]} 43. Rg5 {[%emt 0:00:23]} Rbb6 {[%emt 0:02:44]} 44. a4 {[%emt 0:00:51]} Rbd6 {[%emt 0:01:23]} 45. a5 {[%emt 0:00:31]} Rh6 {[%emt 0:00:15]} 46. h5 {[%emt 0:00:19]} Kd4 {[%emt 0:00:26]} 47. Kg3 {[%emt 0:00:49]} Ke3 {[%emt 0:00:29]} 48. Re7+ {[%emt 0:00:09]} Kd3 {[%emt 0:00:26]} 49. Kh4 {[%emt 0:00:49]} Rd4+ {[%emt 0:00:20]} 50. g4 {[%emt 0:00:09]} Rdd6 {[%emt 0:00:20]} 51. Rf5 {[%emt 0:00:45]} Rd4 {[%emt 0:00:17]} 52. Ref7 {[%emt 0:00:38]} Ke3 {[%emt 0:00:25]} 53. R5f6 {[%emt 0:00:47]} Rh8 {[%emt 0:00:39]} 54. a6 {[%emt 0:00:15]} Rg8 {[%emt 0:00:55]} 55. Rf3+ {[%emt 0:00:17]} Ke2 {[%emt 0:00:33]} 56. R3f4 {[%emt 0:00:09]} Rd1 {[%emt 0:00:34]} 57. Re7+ {[%emt 0:00:36]} 1-0

[Event "POL-chT 2nd League-4 2020"]
[Site "Poronin"]
[Date "2020.09.12"]
[Round "8.20"]
[White "Mrozowski, Patryk"]
[Black "Daniel, Damian"]
[Result "1/2-1/2"]
[ECO "B12"]
[WhiteElo "2062"]
[BlackElo "2176"]
[Annotator "NA"]
[PlyCount "40"]
[EventDate "2020.09.05"]
[EventType "team-tourn"]
[EventCountry "POL"]
[SourceTitle "playchess.com"]
[Source "ChessBase"]
[SourceQuality "1"]
[WhiteTeam "Ustrzyki Dolne"]
[BlackTeam "Goniec Zarow"]
[TimeControl "40/5400+30:900+30"]

1. e4 {[%emt 0:00:00]} c6 {[%emt 0:00:00]} 2. d4 {[%emt 0:00:00]} d5 {[%emt 0:00:00]} 3. e5 {[%emt 0:00:00]} c5 {[%emt 0:00:00]} 4. dxc5 {[%emt 0:00:00]} e6 {[%emt 0:00:00]} 5. Nf3 {[%emt 0:00:00]} Bxc5 {[%emt 0:00:39]} 6. a3 {[%emt 0:00:00]} Ne7 {[%emt 0:00:27]} 7. Bd3 {[%emt 0:00:10]} Ng6 {[%emt 0:04:24]} 8. O-O {[%emt 0:00:16]} Nc6 {[%emt 0:02:52]} 9. b4 {[%emt 0:03:30]} Bb6 {[%emt 0:07:40]} 10. Bb2 {[%emt 0:05:04]} a6 {[%emt 0:08:59]} 11. c4 {[%emt 0:09:22]} dxc4 {[%emt 0:03:42]} 12. Bxc4 {[%emt 0:00:10]} Qxd1 {[%emt 0:00:30]} 13. Rxd1 {[%emt 0:00:04]} Bc7 {[%emt 0:01:32]} 14. Re1 {[%emt 0:00:09]} Ke7 {[%emt 0:03:34]} 15. h4 {[%emt 0:01:59]} Rd8 {[%emt 0:11:02]} 16. Bf1 {[%emt 0:22:46]} f6 {[%emt 0:20:10]} 17. exf6+ {[%emt 0:02:42]} gxf6 {[%emt 0:00:06]} 18. Nc3 {[%emt 0:01:18]} e5 {[%emt 0:02:00]} 19. g3 {[%emt 0:01:37]} Be6 {[%emt 0:04:38]} 20. Rac1 {[%emt 0:02:59]} Nf8 {[%emt 0:00:55]} 1/2-1/2

[Event "POL-chT 2nd League-4 2020"]
[Site "Poronin"]
[Date "2020.09.12"]
[Round "8.21"]
[White "Stankiewicz, Pawel"]
[Black "Pasionek, Ariel"]
[Result "1-0"]
[ECO "A05"]
[WhiteElo "2111"]
[BlackElo "1894"]
[Annotator "ChessBase"]
[PlyCount "74"]
[EventDate "2020.09.05"]
[EventType "team-tourn"]
[EventCountry "POL"]
[SourceTitle "playchess.com"]
[Source "ChessBase"]
[SourceQuality "1"]
[WhiteTeam "Goniec Zarow"]
[BlackTeam "Ustrzyki Dolne"]
[TimeControl "40/5400+30:900+30"]

1. Nf3 {[%emt 0:00:00]} Nf6 {[%emt 0:00:00]} 2. g3 {[%emt 0:00:00]} g6 {[%emt 0:00:00]} 3. Bg2 {[%emt 0:00:00]} Bg7 {[%emt 0:00:00]} 4. O-O {[%emt 0:00:00]} O-O {[%emt 0:00:00]} 5. d3 {[%emt 0:00:16]} d6 {[%emt 0:00:18]} 6. c4 {[%emt 0:01:03]} c6 {[%emt 0:00:26]} 7. Nc3 {[%emt 0:00:35]} Qc7 {[%emt 0:02:39]} 8. Rb1 {[%emt 0:04:00]} Bg4 {[%emt 0:02:18]} 9. h3 {[%emt 0:00:05]} Bxf3 {[%emt 0:00:05]} 10. Bxf3 {[%emt 0:00:03]} Nbd7 {[%emt 0:00:30]} 11. d4 {[%emt 0:04:38]} e5 {[%emt 0:04:53]} 12. b3 {[%emt 0:04:19]} Ne8 {[%emt 0:09:55]} 13. dxe5 {[%emt 0:05:13]} dxe5 {[%emt 0:00:21]} 14. Ba3 {[%emt 0:01:05]} f5 {[%emt 0:03:42]} 15. Bxf8 {[%emt 0:00:47]} Nxf8 {[%emt 0:00:06]} 16. e4 {[%emt 0:02:22]} f4 {[%emt 0:00:32]} 17. Qc2 {[%emt 0:02:57]} Ne6 {[%emt 0:02:20]} 18. Ne2 {[%emt 0:04:16]} Ng5 {[%emt 0:02:14]} 19. Kg2 {[%emt 0:04:05]} Nf6 {[%emt 0:13:44]} 20. Ng1 {[%emt 0:06:03]} Rf8 {[%emt 0:05:04]} 21. c5 {[%emt 0:03:48]} h5 {[%emt 0:02:57]} 22. Qc4+ {[%emt 0:09:45]} Kh8 {[%emt 0:01:25]} 23. Rbd1 {[%emt 0:01:56]} Qc8 {[%emt 0:06:10]} 24. h4 {[%emt 0:12:08]} Ne6 {[%emt 0:04:43]} 25. Nh3 {[%emt 0:08:55]} Ng4 {[%emt 0:02:39]} 26. Bxg4 {[%emt 0:03:55]} hxg4 {[%emt 0:00:06]} 27. Ng5 {[%emt 0:00:20]} f3+ {[%emt 0:07:44]} 28. Kh2 {[%emt 0:00:01]} Nd4 {[%emt 0:05:43]} 29. Nf7+ {[%emt 0:04:27]} Kh7 {[%emt 0:00:43]} 30. Ng5+ {[%emt 0:00:01]} Kh8 {[%emt 0:00:40]} 31. Rxd4 {[%emt 0:02:02]} exd4 {[%emt 0:00:02]} 32. Ne6 {[%emt 0:00:16]} Re8 {[%emt 0:11:10]} 33. Nxg7 {[%emt 0:00:05]} Kxg7 {[%emt 0:00:16]} 34. Qxd4+ {[%emt 0:00:05]} Kf7 {[%emt 0:01:18]} 35. Re1 {[%emt 0:02:47]} g5 {[%emt 0:03:08]} 36. e5 {[%emt 0:07:42]} Qf5 {[%emt 0:03:39]} 37. e6+ {[%emt 0:00:41]} Kf8 {[%emt 0:03:43]} 1-0

[Event "POL-chT 2nd League-4 2020"]
[Site "Poronin"]
[Date "2020.09.12"]
[Round "8.22"]
[White "Wojciechowski, Beniamin"]
[Black "Rychlik, Hanna"]
[Result "1-0"]
[ECO "B23"]
[WhiteElo "1814"]
[BlackElo "2053"]
[Annotator "ChessBase"]
[PlyCount "197"]
[EventDate "2020.09.05"]
[EventType "team-tourn"]
[EventCountry "POL"]
[SourceTitle "playchess.com"]
[Source "ChessBase"]
[SourceQuality "1"]
[WhiteTeam "Ustrzyki Dolne"]
[BlackTeam "Goniec Zarow"]
[TimeControl "40/5400+30:900+30"]

1. e4 c5 2. Nc3 a6 3. g3 b5 4. Bg2 Bb7 5. d3 e6 6. Nge2 Nf6 7. O-O Qc7 8. Re1 b4 9. Nb1 h5 10. h3 Nc6 11. c3 Na5 12. Bg5 c4 13. cxb4 Bxb4 14. Nbc3 cxd3 15. Qxd3 Bc5 16. Na4 Ba7 17. Rac1 Qe5 18. Bf4 Qb5 19. Qc2 O-O 20. Nec3 Qc6 21. b3 d5 22. exd5 exd5 23. Be5 Rac8 24. Qd2 Rfd8 25. Nxd5 Rxd5 26. Bxd5 Qxd5 27. Rxc8+ Bxc8 28. Qxd5 Nxd5 29. Bb8 Nc6 30. Re8+ Kh7 31. Rxc8 Nxb8 32. Nc3 Ne7 33. Rc7 Nbc6 34. Nd5 Bb8 35. Rxe7 Nxe7 36. Nxe7 a5 37. Nc6 Bc7 38. Kg2 Kg8 39. Kf3 Kf8 40. Ke4 Bb6 41. f3 Ke8 42. g4 h4 43. Kd5 Kd7 44. Ne5+ Ke7 45. Kc6 Bd4 46. Nc4 Bc3 47. Kb5 Ke6 48. Nxa5 Ke5 49. Nc4+ Kf4 50. b4 Kg3 51. a4 Kxh3 52. a5 Kg3 53. a6 Bd4 54. Nb6 Bxb6 55. Kxb6 h3 56. a7 h2 57. a8=Q h1=Q 58. Qb8+ Kg2 59. Qf4 Qg1+ 60. Kb7 Qf1 61. Kb6 Qf2+ 62. Kb5 Qe2+ 63. Qc4 Qe8+ 64. Qc6 Qe5+ 65. Ka6 Qa1+ 66. Kb7 Qa3 67. b5 g6 68. Qf6 Qc5 69. b6 Qd5+ 70. Kb8 Qb3 71. Kc7 Qc4+ 72. Kd7 Qd5+ 73. Ke7 Qb7+ 74. Kf8 Kh3 75. g5 Kg2 76. f4 Kg3 77. Kg7 Kg4 78. Qxf7 Qxb6 79. Qxg6 Qc7+ 80. Qf7 Qc3+ 81. Kg6 Qc6+ 82. Qf6 Qe8+ 83. Qf7 Qc6+ 84. Kh7 Qh1+ 85. Kg7 Qa1+ 86. Kg6 Qa6+ 87. Qf6 Qc8 88. f5 Qd7 89. Qe6 Qd3 90. Kg7 Kxg5 91. Qh6+ Kg4 92. f6 Qd4 93. Qg6+ Kf4 94. Kh7 Qd7+ 95. f7 Kf3 96. Kg8 Qd5 97. Qf6+ Kg4 98. Kh7 Qh5+ 99. Kg7 1-0

[Event "POL-chT 2nd League-4 2020"]
[Site "Poronin"]
[Date "2020.09.12"]
[Round "8.23"]
[White "Szmyd, Marek"]
[Black "Palacki, Rafal"]
[Result "1/2-1/2"]
[ECO "A05"]
[WhiteElo "1874"]
[BlackElo "1806"]
[Annotator "NA"]
[PlyCount "106"]
[EventDate "2020.09.05"]
[EventType "team-tourn"]
[EventCountry "POL"]
[SourceTitle "playchess.com"]
[Source "ChessBase"]
[SourceQuality "1"]
[WhiteTeam "Goniec Zarow"]
[BlackTeam "Ustrzyki Dolne"]
[TimeControl "40/5400+30:900+30"]

1. Nf3 Nf6 2. b3 d5 3. Bb2 Bf5 4. e3 e6 5. d4 Nbd7 6. Bd3 {D04: Colle System.} Ne4 7. O-O Bd6 8. Ne5 {[#]} Bxe5 $146 ({Predecessor:} 8... c5 9. f3 Nef6 10. Qe2 Qc7 11. f4 Ne4 12. Qh5 Ndf6 13. Bb5+ Kf8 14. Qxf7+ Qxf7 15. Nxf7 Kxf7 {0-1 (24) Burger,D (973)-Dixon,L (1105) Neumuenster 2017}) 9. dxe5 Ndc5 10. Be2 Qg5 11. Kh1 Qh6 12. Qe1 Nd7 13. Bd3 Bg6 14. b4 Ng5 15. Nd2 Bxd3 16. cxd3 f5 17. exf6 Nxf6 18. f4 Nf7 19. Nf3 O-O 20. Nd4 Rfe8 21. Rf3 Nd6 22. Qe2 e5 23. Rh3 Qg6 24. fxe5 Rxe5 25. Nb5 Re7 26. Nxd6 cxd6 27. Rf1 Nd7 28. Rg3 Qh6 29. Qg4 Ne5 30. Qd4 Qe6 31. a4 b6 32. e4 dxe4 33. Qxe4 Rc8 34. Re3 Qd7 35. Qd5+ Kh8 36. Rfe1 h6 37. h3 Rce8 38. b5 Ng6 39. Rxe7 Rxe7 40. Rxe7 Qxe7 41. Qe4 Qf7 42. Kg1 d5 43. Qd4 Nf4 44. Qe3 Kh7 $11 45. Be5 Ne6 46. d4 Ng5 47. Qc3 Ne4 48. Qc7 Qxc7 49. Bxc7 Nc3 50. Bb8 Nxa4 51. Bxa7 Kg6 52. Kf2 Kf5 53. Ke3 Nc3 1/2-1/2

[Event "POL-chT 2nd League-4 2020"]
[Site "Poronin"]
[Date "2020.09.12"]
[Round "8.24"]
[White "Krzysztynska, Anna"]
[Black "Czaplewska, Klara"]
[Result "0-1"]
[ECO "C25"]
[WhiteElo "1867"]
[BlackElo "1875"]
[Annotator "NA"]
[PlyCount "112"]
[EventDate "2020.09.05"]
[EventType "team-tourn"]
[EventCountry "POL"]
[SourceTitle "playchess.com"]
[Source "ChessBase"]
[SourceQuality "1"]
[WhiteTeam "Ustrzyki Dolne"]
[BlackTeam "Goniec Zarow"]
[TimeControl "40/5400+30:900+30"]

1. e4 e5 2. Nc3 Nc6 3. g3 g6 4. Bg2 Bg7 5. d3 d6 6. Nge2 Nge7 7. Be3 Nd4 8. Qd2 Bg4 9. Bxd4 exd4 10. Nd1 Qd7 11. f4 Bxe2 12. Qxe2 O-O-O 13. Nf2 Rde8 14. O-O-O Nd5 15. Qf3 Ne3 16. Bh3 f5 17. exf5 Qa4 18. Kb1 Qxc2+ 19. Ka1 Nxd1 20. Qxd1 Qxd1+ 21. Rxd1 Kd8 22. Ne4 gxf5 23. Bxf5 h6 24. g4 Rhf8 25. Bg6 Re6 26. f5 Re5 27. h4 b6 28. g5 d5 29. Ng3 hxg5 30. hxg5 Re3 31. Nh5 Be5 32. a3 Rg8 33. Kb1 Rh3 34. Nf6 Bxf6 35. gxf6 Rgh8 36. Kc2 Rh1 37. Rxh1 Rxh1 38. Bf7 Rh6 39. Bxd5 Rxf6 40. Be4 Ke7 41. Kb3 Kd6 42. Kc4 Ke5 43. b4 Rh6 44. a4 Rh2 45. b5 Rb2 46. f6 Rf2 47. Kb4 Rxf6 48. Kc4 Rf1 49. Kb3 Rc1 50. Kb4 Kf4 51. a5 Ke3 52. axb6 axb6 53. Kb3 Rc3+ 54. Kb2 Rxd3 55. Bxd3 Kxd3 56. Kc1 Ke2 0-1

[Event "POL-chT 2nd League-4 2020"]
[Site "Poronin"]
[Date "2020.09.13"]
[Round "9.5"]
[White "Kurpiewski, Slawomir"]
[Black "Szmyd, Marek"]
[Result "1/2-1/2"]
[ECO "A03"]
[WhiteElo "1943"]
[BlackElo "1874"]
[Annotator "NA"]
[PlyCount "30"]
[EventDate "2020.09.05"]
[EventType "team-tourn"]
[EventCountry "POL"]
[SourceTitle "playchess.com"]
[Source "ChessBase"]
[SourceQuality "1"]
[TimeControl "40/5400+30:900+30"]

1. f4 {[%emt 0:00:11]} d5 {[%emt 0:02:44]} 2. Nf3 {[%emt 0:00:13]} Nf6 {[%emt 0:00:59]} 3. g3 {[%emt 0:00:20]} c5 {[%emt 0:01:19]} 4. Bg2 {[%emt 0:00:08]} Nc6 {[%emt 0:00:56]} 5. O-O {[%emt 0:00:08]} e6 {[%emt 0:00:17]} 6. d3 {[%emt 0:00:08]} Be7 {[%emt 0:00:55]} 7. e4 {[%emt 0:00:13]} d4 {[%emt 0:05:07]} 8. h3 {[%emt 0:00:52]} Qc7 {[%emt 0:08:27]} 9. a4 {[%emt 0:00:35]} b6 {[%emt 0:14:26]} 10. Na3 {[%emt 0:00:12]} Ba6 {[%emt 0:00:24]} ({Black should play} 10... O-O $11) 11. Nd2 {[%emt 0:10:03]} e5 {[%emt 0:05:04]} 12. Ndc4 {[%emt 0:00:37]} Nd7 {[%emt 0:02:51]} 13. Nb5 $16 {[%emt 0:00:37]} Bxb5 {[%emt 0:05:02]} 14. axb5 {[%emt 0:00:14]} Nd8 {[%emt 0:02:12]} 15. Qf3 {[%emt 0:14:02]} Bf8 1/2-1/2